[Event "*** Titled Tuesday Blitz"]
[Site "Chess.com"]
[Date "2019.03.05"]
[Round "5"]
[White "Micki-taryan"]
[Black "Alexey_Potapov"]
[Result "1/2-1/2"]
[WhiteElo "2956"]
[BlackElo "2741"]
[TimeControl "180+2"]
[EndTime "14:14:22 PST"]
[Termination "Game drawn - insufficient material"]

1. d4 {[%clk 0:03:01.9]} 1... c6 {[%clk 0:03:01.9]} 2. Nf3 {[%clk 0:02:58.6]}
2... d6 {[%clk 0:03:03]} 3. c4 {[%clk 0:02:56.9]} 3... Nf6 {[%clk 0:03:03]} 4.
Nc3 {[%clk 0:02:58.8]} 4... g6 {[%clk 0:03:04.1]} 5. g3 {[%clk 0:02:59.7]} 5...
Bg7 {[%clk 0:03:03.7]} 6. Bg2 {[%clk 0:03:01.6]} 6... O-O {[%clk 0:03:02.3]} 7.
O-O {[%clk 0:03:03.5]} 7... Qc7 {[%clk 0:03:01.7]} 8. e4 {[%clk 0:02:53.9]} 8...
e5 {[%clk 0:02:58.4]} 9. h3 {[%clk 0:02:53.4]} 9... Re8 {[%clk 0:02:56.1]} 10.
d5 {[%clk 0:02:54.3]} 10... c5 {[%clk 0:02:43.7]} 11. Qc2 {[%clk 0:02:45.1]}
11... Na6 {[%clk 0:02:41.9]} 12. a3 {[%clk 0:02:45.5]} 12... Bd7 {[%clk
0:02:40.4]} 13. Ne1 {[%clk 0:02:42.8]} 13... Rab8 {[%clk 0:02:36]} 14. Nd3
{[%clk 0:02:41.8]} 14... b5 {[%clk 0:02:33.3]} 15. cxb5 {[%clk 0:02:38.7]} 15...
Bxb5 {[%clk 0:02:35.2]} 16. Nxb5 {[%clk 0:02:39.8]} 16... Rxb5 {[%clk
0:02:36.9]} 17. Qa4 {[%clk 0:02:24.3]} 17... Qb7 {[%clk 0:02:33.3]} 18. Bd2
{[%clk 0:02:18.8]} 18... Nd7 {[%clk 0:02:28]} 19. Qc4 {[%clk 0:02:19.1]} 19...
Rc8 {[%clk 0:02:11.5]} 20. Rfc1 {[%clk 0:02:17.7]} 20... Rb8 {[%clk 0:02:04]}
21. Bc3 {[%clk 0:02:13.8]} 21... Rb3 {[%clk 0:01:59.9]} 22. Bf1 {[%clk
0:01:57.4]} 22... Nc7 {[%clk 0:01:57.9]} 23. Bb4 {[%clk 0:01:41.8]} 23... Rxd3
{[%clk 0:01:51.6]} 24. Bxd3 {[%clk 0:01:43.7]} 24... Nxd5 {[%clk 0:01:45.8]} 25.
Qxd5 {[%clk 0:01:37.7]} 25... Qxd5 {[%clk 0:01:43.3]} 26. exd5 {[%clk
0:01:38.7]} 26... cxb4 {[%clk 0:01:44.2]} 27. axb4 {[%clk 0:01:40.2]} 27... e4
{[%clk 0:01:36.9]} 28. Rxa7 {[%clk 0:01:35.7]} 28... Bxb2 {[%clk 0:01:24.4]} 29.
Rd1 {[%clk 0:01:31]} 29... Nf6 {[%clk 0:01:21.8]} 30. Bc2 {[%clk 0:00:46.1]}
30... Rxb4 {[%clk 0:01:22.2]} 31. Rb1 {[%clk 0:00:44.2]} 31... Nxd5 {[%clk
0:01:21.6]} 32. Ra2 {[%clk 0:00:45.2]} 32... Bd4 {[%clk 0:01:18.2]} 33. Rxb4
{[%clk 0:00:46]} 33... Nxb4 {[%clk 0:01:19.4]} 34. Ra8+ {[%clk 0:00:47.9]} 34...
Kg7 {[%clk 0:01:18.5]} 35. Bxe4 {[%clk 0:00:49.8]} 35... Kf6 {[%clk 0:01:13.3]}
36. Kg2 {[%clk 0:00:48.6]} 36... h5 {[%clk 0:01:11.1]} 37. Rb8 {[%clk
0:00:46.6]} 37... Bc5 {[%clk 0:01:06.8]} 38. Rb7 {[%clk 0:00:46.7]} 38... Ke6
{[%clk 0:01:04]} 39. Bb1 {[%clk 0:00:42.8]} 39... d5 {[%clk 0:01:02.1]} 40. f4
{[%clk 0:00:42.4]} 40... Bd6 {[%clk 0:00:57.1]} 41. Kf3 {[%clk 0:00:39.5]} 41...
Bc5 {[%clk 0:00:55]} 42. g4 {[%clk 0:00:39.9]} 42... hxg4+ {[%clk 0:00:55.7]}
43. hxg4 {[%clk 0:00:41.8]} 43... Bd6 {[%clk 0:00:56.5]} 44. Rb6 {[%clk
0:00:41.8]} 44... Kd7 {[%clk 0:00:54.1]} 45. Rb7+ {[%clk 0:00:41.5]} 45... Ke6
{[%clk 0:00:54]} 46. g5 {[%clk 0:00:39.3]} 46... Na6 {[%clk 0:00:44.9]} 47. Kg4
{[%clk 0:00:39.8]} 47... Nc7 {[%clk 0:00:42.1]} 48. Ba2 {[%clk 0:00:40.9]} 48...
Na6 {[%clk 0:00:37.6]} 49. Ra7 {[%clk 0:00:34.1]} 49... Nc7 {[%clk 0:00:37.3]}
50. Bb3 {[%clk 0:00:35.5]} 50... Nb5 {[%clk 0:00:35.3]} 51. Ra1 {[%clk
0:00:35.4]} 51... Nc3 {[%clk 0:00:33.9]} 52. Re1+ {[%clk 0:00:31.5]} 52... Kd7
{[%clk 0:00:34.8]} 53. f5 {[%clk 0:00:31.7]} 53... gxf5+ {[%clk 0:00:33.3]} 54.
Kxf5 {[%clk 0:00:33.6]} 54... Be7 {[%clk 0:00:32.5]} 55. Rh1 {[%clk 0:00:30]}
55... Ne4 {[%clk 0:00:30]} 56. Ra1 {[%clk 0:00:25.8]} 56... Nxg5 {[%clk
0:00:25.3]} 57. Ra6 {[%clk 0:00:24.5]} 57... Ne6 {[%clk 0:00:22]} 58. Bxd5
{[%clk 0:00:23.9]} 58... Bc5 {[%clk 0:00:21.6]} 59. Kf6 {[%clk 0:00:21.5]} 59...
Nc7 {[%clk 0:00:21.8]} 60. Ra5 {[%clk 0:00:12.6]} 60... Nxd5+ {[%clk 0:00:22.6]}
61. Ke5 {[%clk 0:00:14]} 61... Kc6 {[%clk 0:00:23.1]} 62. Ra1 {[%clk 0:00:10.7]}
62... f6+ {[%clk 0:00:23]} 63. Ke6 {[%clk 0:00:12.2]} 63... Bd4 {[%clk
0:00:21.8]} 64. Rc1+ {[%clk 0:00:13]} 64... Nc3 {[%clk 0:00:22.4]} 65. Rf1
{[%clk 0:00:12.1]} 65... Kc5 {[%clk 0:00:23.8]} 66. Rxf6 {[%clk 0:00:12.7]}
66... Bxf6 {[%clk 0:00:25.2]} 67. Kxf6 {[%clk 0:00:14.6]} 1/2-1/2

[Event "*** Titled Tuesday Blitz"]
[Site "Chess.com"]
[Date "2019.03.05"]
[Round "5"]
[White "Tiqr777"]
[Black "MFguimaraes"]
[Result "1-0"]
[WhiteElo "2485"]
[BlackElo "2311"]
[TimeControl "180+2"]
[EndTime "14:14:22 PST"]
[Termination "Tiqr777 won by resignation"]

1. d4 {[%clk 0:03:01.9]} 1... Nf6 {[%clk 0:02:56.3]} 2. c4 {[%clk 0:03:03]} 2...
c6 {[%clk 0:02:57.1]} 3. Nf3 {[%clk 0:03:03.7]} 3... d5 {[%clk 0:02:58.4]} 4.
Nbd2 {[%clk 0:03:05.1]} 4... Bf5 {[%clk 0:02:53.4]} 5. g3 {[%clk 0:03:06.2]}
5... h6 {[%clk 0:02:47.8]} 6. Bg2 {[%clk 0:03:06.7]} 6... e6 {[%clk 0:02:49.1]}
7. O-O {[%clk 0:03:08.1]} 7... Nbd7 {[%clk 0:02:50.4]} 8. b3 {[%clk 0:03:09.6]}
8... Bd6 {[%clk 0:02:49.7]} 9. Bb2 {[%clk 0:03:11]} 9... O-O {[%clk 0:02:50.4]}
10. e3 {[%clk 0:03:12.6]} 10... Ne4 {[%clk 0:02:50.7]} 11. Nxe4 {[%clk
0:03:13.3]} 11... Bxe4 {[%clk 0:02:51.6]} 12. Nd2 {[%clk 0:03:14.3]} 12... Bxg2
{[%clk 0:02:52.3]} 13. Kxg2 {[%clk 0:03:16]} 13... e5 {[%clk 0:02:49.3]} 14.
cxd5 {[%clk 0:03:16.3]} 14... cxd5 {[%clk 0:02:43.7]} 15. dxe5 {[%clk
0:03:17.3]} 15... Nxe5 {[%clk 0:02:43.7]} 16. Nf3 {[%clk 0:03:18.1]} 16... Nxf3
{[%clk 0:02:29.6]} 17. Qxf3 {[%clk 0:03:19.4]} 17... Qa5 {[%clk 0:02:19.9]} 18.
Rfd1 {[%clk 0:03:14.8]} 18... Ba3 {[%clk 0:02:17.2]} 19. Rxd5 {[%clk 0:03:07.3]}
19... Qa6 {[%clk 0:02:16.9]} 20. Bd4 {[%clk 0:02:58.4]} 20... Rfd8 {[%clk
0:02:16.3]} 21. Rd1 {[%clk 0:02:50]} 21... Be7 {[%clk 0:02:11.3]} 22. Rxd8+
{[%clk 0:02:38.8]} 22... Rxd8 {[%clk 0:02:10.3]} 23. a4 {[%clk 0:02:40.3]} 23...
b5 {[%clk 0:02:08.1]} 24. axb5 {[%clk 0:02:28.1]} 24... Qxb5 {[%clk 0:02:09.1]}
25. Bxa7 {[%clk 0:02:19.7]} 25... Rxd1 {[%clk 0:02:02.9]} 26. Qxd1 {[%clk
0:02:20]} 26... Qb7+ {[%clk 0:02:04.1]} 27. Qf3 {[%clk 0:02:19.1]} 27... Qxa7
{[%clk 0:02:05.1]} 28. Qd5 {[%clk 0:02:20.7]} 28... Qc5 {[%clk 0:01:59.7]} 29.
Qe4 {[%clk 0:02:16.2]} 29... f5 {[%clk 0:01:57.8]} 30. Qe6+ {[%clk 0:02:16.2]}
30... Kf8 {[%clk 0:01:59.1]} 31. h4 {[%clk 0:02:16.7]} 31... Bf6 {[%clk
0:01:48.8]} 32. h5 {[%clk 0:02:15.9]} 32... Qe5 {[%clk 0:01:47.4]} 33. Qc8+
{[%clk 0:02:16.6]} 33... Kf7 {[%clk 0:01:48.2]} 34. Qc4+ {[%clk 0:02:09.7]}
34... Qe6 {[%clk 0:01:46.9]} 35. Qb5 {[%clk 0:02:09.8]} 35... Qe4+ {[%clk
0:01:43.5]} 36. Kg1 {[%clk 0:02:11]} 36... Be7 {[%clk 0:01:34.8]} 37. Qd7 {[%clk
0:01:40.6]} 37... Qf3 {[%clk 0:01:27.2]} 38. b4 {[%clk 0:01:36.8]} 38... Qxh5
{[%clk 0:01:23.2]} 39. b5 {[%clk 0:01:37.9]} 39... Qg6 {[%clk 0:01:23.5]} 40.
Qc7 {[%clk 0:01:28.7]} 40... Qd6 {[%clk 0:00:57.8]} 41. b6 {[%clk 0:01:28.8]}
41... Qd1+ {[%clk 0:00:45.2]} 42. Kg2 {[%clk 0:01:29.4]} 42... Qd5+ {[%clk
0:00:45]} 43. Kh2 {[%clk 0:01:25.1]} 43... Qf3 {[%clk 0:00:36.9]} 44. Kg1 {[%clk
0:01:25.5]} 44... Qd1+ {[%clk 0:00:37.2]} 45. Kg2 {[%clk 0:01:26]} 45... Qd5+
{[%clk 0:00:37.8]} 46. Kg1 {[%clk 0:01:19.3]} 46... Qd1+ {[%clk 0:00:38.5]} 47.
Kg2 {[%clk 0:00:53.1]} 47... Qd5+ {[%clk 0:00:38.9]} 48. Kh2 {[%clk 0:00:54.6]}
48... Qf3 {[%clk 0:00:25.1]} 49. Qc2 {[%clk 0:00:55.7]} 49... Qe4 {[%clk
0:00:22.9]} 50. Qb3+ {[%clk 0:00:53.8]} 50... Qe6 {[%clk 0:00:21.5]} 51. Qb5
{[%clk 0:00:51.8]} 51... Bd6 {[%clk 0:00:20.9]} 52. b7 {[%clk 0:00:53.1]} 52...
Bb8 {[%clk 0:00:22]} 53. Qc5 {[%clk 0:00:48.1]} 53... h5 {[%clk 0:00:20.3]} 54.
Qc8 {[%clk 0:00:48.8]} 54... Qe5 {[%clk 0:00:19.8]} 55. Qd7+ {[%clk 0:00:45.7]}
55... Kg6 {[%clk 0:00:20.9]} 56. Kg2 {[%clk 0:00:44.4]} 56... h4 {[%clk
0:00:21.8]} 57. gxh4 {[%clk 0:00:44.3]} 57... Qh2+ {[%clk 0:00:22.8]} 58. Kf3
{[%clk 0:00:43.2]} 58... Qh1+ {[%clk 0:00:22.9]} 59. Ke2 {[%clk 0:00:43.7]}
59... Qh2 {[%clk 0:00:23.7]} 60. Qe6+ {[%clk 0:00:43.5]} 60... Kh5 {[%clk
0:00:22.2]} 61. Qxf5+ {[%clk 0:00:42.7]} 61... Kxh4 {[%clk 0:00:23.6]} 62. Qh7+
{[%clk 0:00:43]} 62... Kg5 {[%clk 0:00:21.8]} 63. Qxh2 {[%clk 0:00:42.2]} 63...
Bxh2 {[%clk 0:00:21.7]} 64. f4+ {[%clk 0:00:43.8]} 1-0

[Event "*** Titled Tuesday Blitz"]
[Site "Chess.com"]
[Date "2019.03.05"]
[Round "5"]
[White "joppie2"]
[Black "bascheyaro"]
[Result "0-1"]
[WhiteElo "2768"]
[BlackElo "2811"]
[TimeControl "180+2"]
[EndTime "14:15:09 PST"]
[Termination "bascheyaro won by checkmate"]

1. c4 {[%clk 0:03:01.9]} 1... e5 {[%clk 0:03:00.8]} 2. Nc3 {[%clk 0:03:02.1]}
2... Nc6 {[%clk 0:03:01.8]} 3. Nf3 {[%clk 0:03:01.1]} 3... d6 {[%clk 0:03:02.7]}
4. e3 {[%clk 0:03:01.2]} 4... Nf6 {[%clk 0:02:55.5]} 5. d4 {[%clk 0:03:01.7]}
5... exd4 {[%clk 0:02:52.5]} 6. exd4 {[%clk 0:03:02.7]} 6... Bg4 {[%clk
0:02:53.7]} 7. Be2 {[%clk 0:03:03.3]} 7... Be7 {[%clk 0:02:54.7]} 8. h3 {[%clk
0:02:58.7]} 8... Bh5 {[%clk 0:02:54.6]} 9. d5 {[%clk 0:02:58.7]} 9... Bxf3
{[%clk 0:02:37.5]} 10. Bxf3 {[%clk 0:03:00.6]} 10... Ne5 {[%clk 0:02:38.8]} 11.
Be2 {[%clk 0:03:02.3]} 11... O-O {[%clk 0:02:39.5]} 12. O-O {[%clk 0:03:03.2]}
12... Re8 {[%clk 0:02:40.3]} 13. Be3 {[%clk 0:03:00.4]} 13... a5 {[%clk
0:02:38]} 14. Rc1 {[%clk 0:03:00.7]} 14... b6 {[%clk 0:02:38.8]} 15. Nb5 {[%clk
0:03:00.7]} 15... Nfd7 {[%clk 0:02:31.7]} 16. Nd4 {[%clk 0:03:00]} 16... Bf6
{[%clk 0:02:29.4]} 17. Re1 {[%clk 0:02:56.1]} 17... Nc5 {[%clk 0:02:29.5]} 18.
Bf1 {[%clk 0:02:57.4]} 18... Qd7 {[%clk 0:02:24.9]} 19. b3 {[%clk 0:02:57.4]}
19... Ng6 {[%clk 0:02:11.7]} 20. g3 {[%clk 0:02:44.6]} 20... Bxd4 {[%clk
0:02:11.5]} 21. Bxd4 {[%clk 0:02:43.4]} 21... Rxe1 {[%clk 0:02:12.5]} 22. Qxe1
{[%clk 0:02:45.2]} 22... Re8 {[%clk 0:02:13.1]} 23. Qd1 {[%clk 0:02:43.1]} 23...
Qf5 {[%clk 0:02:07.6]} 24. Rc3 {[%clk 0:02:40.4]} 24... Ne5 {[%clk 0:02:02]} 25.
Re3 {[%clk 0:02:36.5]} 25... Ra8 {[%clk 0:01:19.2]} 26. Qe2 {[%clk 0:02:24]}
26... Ned7 {[%clk 0:01:09.2]} 27. Bg2 {[%clk 0:02:15.3]} 27... Kf8 {[%clk
0:01:05.6]} 28. a3 {[%clk 0:02:04.6]} 28... Qb1+ {[%clk 0:01:00.2]} 29. Kh2
{[%clk 0:02:04.6]} 29... Nxb3 {[%clk 0:00:54.3]} 30. Bxg7+ {[%clk 0:01:40.6]}
30... Kxg7 {[%clk 0:00:50.6]} 31. Be4 {[%clk 0:01:36.3]} 31... Qa1 {[%clk
0:00:34.5]} 32. Qg4+ {[%clk 0:01:36.2]} 32... Kf8 {[%clk 0:00:35.7]} 33. Qxd7
{[%clk 0:01:30]} 33... Nd2 {[%clk 0:00:30.7]} 34. Qf5 {[%clk 0:01:13]} 34...
Nf1+ {[%clk 0:00:30.6]} 35. Kg2 {[%clk 0:01:09.9]} 35... Nxe3+ {[%clk
0:00:31.9]} 36. fxe3 {[%clk 0:01:11.8]} 36... Qb2+ {[%clk 0:00:32.5]} 37. Kf3
{[%clk 0:01:12.7]} 37... Qg7 {[%clk 0:00:28]} 38. Qd7 {[%clk 0:00:59.6]} 38...
Re8 {[%clk 0:00:28.1]} 39. Bf5 {[%clk 0:00:55.8]} 39... Qe5 {[%clk 0:00:24.2]}
40. e4 {[%clk 0:00:57.1]} 40... Re7 {[%clk 0:00:20.4]} 41. Qc8+ {[%clk
0:00:53.9]} 41... Kg7 {[%clk 0:00:21.7]} 42. Kg4 {[%clk 0:00:55.2]} 42... Qf6
{[%clk 0:00:20.3]} 43. h4 {[%clk 0:00:55.1]} 43... Qe5 {[%clk 0:00:19]} 44. Qd8
{[%clk 0:00:53.7]} 44... h6 {[%clk 0:00:20.4]} 45. Kh3 {[%clk 0:00:53.8]} 45...
Qf6 {[%clk 0:00:21.5]} 46. a4 {[%clk 0:00:51.2]} 46... Qe5 {[%clk 0:00:22.1]}
47. Qc8 {[%clk 0:00:50.2]} 47... Qc3 {[%clk 0:00:22.5]} 48. Qd8 {[%clk
0:00:50.7]} 48... Qf6 {[%clk 0:00:23.7]} 49. Kg2 {[%clk 0:00:49.7]} 49... h5
{[%clk 0:00:23]} 50. Kh3 {[%clk 0:00:49.4]} 50... Re5 {[%clk 0:00:24.1]} 51.
Qxc7 {[%clk 0:00:49.8]} 51... Rxf5 {[%clk 0:00:25.5]} 52. exf5 {[%clk
0:00:51.7]} 52... Qxf5+ {[%clk 0:00:27]} 53. Kg2 {[%clk 0:00:51.9]} 53... Qe4+
{[%clk 0:00:28.3]} 54. Kf2 {[%clk 0:00:48.1]} 54... Qc2+ {[%clk 0:00:29.5]} 55.
Ke3 {[%clk 0:00:48.3]} 55... Qb3+ {[%clk 0:00:30.8]} 56. Kf4 {[%clk 0:00:47.4]}
56... Qxa4 {[%clk 0:00:30.4]} 57. Qxd6 {[%clk 0:00:47.8]} 57... Qxc4+ {[%clk
0:00:31.6]} 58. Kf3 {[%clk 0:00:43.4]} 58... Qd3+ {[%clk 0:00:32.5]} 59. Kf2
{[%clk 0:00:42.2]} 59... Qd4+ {[%clk 0:00:33.6]} 60. Kg2 {[%clk 0:00:41.7]}
60... a4 {[%clk 0:00:35.2]} 61. Kh2 {[%clk 0:00:23.9]} 61... b5 {[%clk
0:00:35.9]} 62. Qd8 {[%clk 0:00:19.9]} 62... Qd2+ {[%clk 0:00:36.7]} 63. Kh3
{[%clk 0:00:20.7]} 63... a3 {[%clk 0:00:38.1]} 64. d6 {[%clk 0:00:15.4]} 64...
a2 {[%clk 0:00:38.1]} 65. Qa8 {[%clk 0:00:17]} 65... a1=Q {[%clk 0:00:38.6]} 66.
Qxa1+ {[%clk 0:00:17.2]} 66... f6 {[%clk 0:00:34.5]} 67. Qa7+ {[%clk 0:00:18]}
67... Kg6 {[%clk 0:00:36]} 68. Qe7 {[%clk 0:00:19.6]} 68... Qd5 {[%clk
0:00:31.3]} 69. Kh2 {[%clk 0:00:19.2]} 69... Qd2+ {[%clk 0:00:32.1]} 70. Kg1
{[%clk 0:00:20]} 70... Qd1+ {[%clk 0:00:31.6]} 71. Kf2 {[%clk 0:00:20.8]} 71...
Qd2+ {[%clk 0:00:31.8]} 72. Kf3 {[%clk 0:00:21.8]} 72... Qd1+ {[%clk 0:00:30.7]}
73. Ke4 {[%clk 0:00:22.4]} 73... Qe2+ {[%clk 0:00:27.5]} 74. Kd5 {[%clk
0:00:23.7]} 74... Qc4# {[%clk 0:00:28.7]} 0-1

[Event "*** Titled Tuesday Blitz"]
[Site "Chess.com"]
[Date "2019.03.05"]
[Round "5"]
[White "fm_magua"]
[Black "kacprekt"]
[Result "1-0"]
[WhiteElo "2470"]
[BlackElo "2281"]
[TimeControl "180+2"]
[EndTime "14:15:10 PST"]
[Termination "fm_magua won by resignation"]

1. e4 {[%clk 0:02:58.7]} 1... c6 {[%clk 0:02:58.4]} 2. d4 {[%clk 0:02:58.1]}
2... d5 {[%clk 0:02:57.8]} 3. e5 {[%clk 0:02:59.7]} 3... Bf5 {[%clk 0:02:56.8]}
4. h4 {[%clk 0:03:00.9]} 4... h6 {[%clk 0:02:56.3]} 5. g4 {[%clk 0:03:01.4]}
5... Bd7 {[%clk 0:02:57.1]} 6. h5 {[%clk 0:03:02.3]} 6... e6 {[%clk 0:02:54.9]}
7. f4 {[%clk 0:03:03.4]} 7... c5 {[%clk 0:02:55.3]} 8. c3 {[%clk 0:03:04.7]}
8... Nc6 {[%clk 0:02:56]} 9. Be3 {[%clk 0:03:05.9]} 9... Qb6 {[%clk 0:02:55.6]}
10. Rh2 {[%clk 0:03:06.8]} 10... cxd4 {[%clk 0:02:50.7]} 11. cxd4 {[%clk
0:03:07.3]} 11... Na5 {[%clk 0:02:51.3]} 12. b3 {[%clk 0:03:03.3]} 12... Bb4+
{[%clk 0:02:50.1]} 13. Kf2 {[%clk 0:03:04.3]} 13... Bb5 {[%clk 0:02:42.2]} 14.
Kg3 {[%clk 0:02:43.6]} 14... Bxf1 {[%clk 0:02:41.7]} 15. Qxf1 {[%clk 0:02:44.2]}
15... Rc8 {[%clk 0:02:39.9]} 16. Nf3 {[%clk 0:02:43.6]} 16... Bc3 {[%clk
0:02:37.3]} 17. Nxc3 {[%clk 0:02:41.7]} 17... Rxc3 {[%clk 0:02:37.8]} 18. Bd2
{[%clk 0:02:35.4]} 18... Rc7 {[%clk 0:02:36.1]} 19. Qe1 {[%clk 0:02:27.6]} 19...
Nc6 {[%clk 0:02:35.1]} 20. Qe3 {[%clk 0:02:26.6]} 20... Nge7 {[%clk 0:02:32]}
21. a3 {[%clk 0:02:14.8]} 21... Kd7 {[%clk 0:02:30.5]} 22. b4 {[%clk 0:02:11.5]}
22... Rhc8 {[%clk 0:02:31.4]} 23. Qd3 {[%clk 0:02:05.3]} 23... a5 {[%clk
0:02:29.8]} 24. b5 {[%clk 0:02:04.2]} 24... Na7 {[%clk 0:02:29.9]} 25. a4 {[%clk
0:02:05.5]} 25... Rc4 {[%clk 0:02:21.7]} 26. f5 {[%clk 0:01:57.1]} 26... Qc7
{[%clk 0:02:09.8]} 27. fxe6+ {[%clk 0:01:51.3]} 27... fxe6 {[%clk 0:02:11.7]}
28. Rf2 {[%clk 0:01:36.6]} 28... b6 {[%clk 0:02:08.2]} 29. Nh4 {[%clk
0:01:30.6]} 29... Rg8 {[%clk 0:01:51.7]} 30. Rf7 {[%clk 0:01:30.7]} 30... Nc8
{[%clk 0:01:52.4]} 31. Raf1 {[%clk 0:01:20.3]} 31... Rxa4 {[%clk 0:01:49.3]} 32.
Ng6 {[%clk 0:01:19.5]} 32... Qc4 {[%clk 0:01:45.2]} 33. Nf8+ {[%clk 0:01:11.1]}
33... Rxf8 {[%clk 0:01:36.6]} 34. Qxc4 {[%clk 0:01:11.8]} 34... Rxc4 {[%clk
0:01:33.4]} 35. Rxf8 {[%clk 0:01:12.8]} 35... Rxd4 {[%clk 0:01:34.5]} 36. Bf4
{[%clk 0:01:07.3]} 36... a4 {[%clk 0:01:30.8]} 37. Ra1 {[%clk 0:00:54.3]} 37...
Rd3+ {[%clk 0:01:28.2]} 38. Kf2 {[%clk 0:00:54.9]} 38... a3 {[%clk 0:01:29.4]}
39. Ke2 {[%clk 0:00:53.9]} 39... Rb3 {[%clk 0:01:30.1]} 40. Bc1 {[%clk
0:00:49.1]} 40... Na7 {[%clk 0:01:18.7]} 41. Rxa3 {[%clk 0:00:41.5]} 41... Nxb5
{[%clk 0:01:15.3]} 42. Raa8 {[%clk 0:00:36]} 42... Nd4+ {[%clk 0:01:08.2]} 43.
Kd2 {[%clk 0:00:34.1]} 43... Ndc6 {[%clk 0:01:04.8]} 44. Ba3 {[%clk 0:00:32]}
44... b5 {[%clk 0:00:48]} 45. Bd6 {[%clk 0:00:32.9]} 45... b4 {[%clk 0:00:42.3]}
46. Rf7 {[%clk 0:00:32.4]} 46... Rb2+ {[%clk 0:00:40.5]} 47. Kc1 {[%clk
0:00:33]} 47... Rg2 {[%clk 0:00:39.6]} 48. Bxe7 {[%clk 0:00:33.9]} 48... Nxe7
{[%clk 0:00:38.3]} 49. Ra7+ {[%clk 0:00:35]} 49... Kc6 {[%clk 0:00:38]} 50.
Rfxe7 {[%clk 0:00:35.7]} 50... Kb5 {[%clk 0:00:36.6]} 51. Rec7 {[%clk
0:00:30.2]} 51... Rxg4 {[%clk 0:00:36.4]} 52. Rxg7 {[%clk 0:00:23.9]} 52... Re4
{[%clk 0:00:36.9]} 53. Rg6 {[%clk 0:00:24.3]} 53... Rxe5 {[%clk 0:00:37.7]} 54.
Rxh6 {[%clk 0:00:25.7]} 54... Kc4 {[%clk 0:00:34.3]} 55. Re7 {[%clk 0:00:26.8]}
55... d4 {[%clk 0:00:23.5]} 56. Rexe6 {[%clk 0:00:28]} 56... Rg5 {[%clk
0:00:23.6]} 57. Reg6 {[%clk 0:00:26.4]} 57... Rf5 {[%clk 0:00:24.3]} 58. Rg3
{[%clk 0:00:27.3]} 58... Rf1+ {[%clk 0:00:23.5]} 59. Kd2 {[%clk 0:00:27.8]}
59... Rf2+ {[%clk 0:00:25]} 60. Ke1 {[%clk 0:00:29]} 60... Rh2 {[%clk
0:00:26.2]} 61. Rc6+ {[%clk 0:00:29.8]} 61... Kd5 {[%clk 0:00:27.5]} 62. Rb6
{[%clk 0:00:30.8]} 62... Kc5 {[%clk 0:00:27.8]} 63. Rgg6 {[%clk 0:00:22.2]}
63... Rh1+ {[%clk 0:00:24.2]} 64. Kf2 {[%clk 0:00:21.6]} 64... Rh2+ {[%clk
0:00:25.2]} 65. Kg3 {[%clk 0:00:22.3]} 65... Rxh5 {[%clk 0:00:22.6]} 66. Rgc6+
{[%clk 0:00:23.2]} 66... Kd5 {[%clk 0:00:23.5]} 67. Rc8 {[%clk 0:00:23.3]} 67...
Rg5+ {[%clk 0:00:19.5]} 68. Kf4 {[%clk 0:00:24.1]} 68... Rg1 {[%clk 0:00:19.4]}
69. Rxb4 {[%clk 0:00:24.6]} 69... Rf1+ {[%clk 0:00:20.8]} 70. Kg3 {[%clk
0:00:25.6]} 70... Ke4 {[%clk 0:00:20.6]} 71. Rd8 {[%clk 0:00:23.9]} 71... Rd1
{[%clk 0:00:20]} 72. Kf2 {[%clk 0:00:25.2]} 72... Rd2+ {[%clk 0:00:18.5]} 73.
Ke1 {[%clk 0:00:26.5]} 73... Rd3 {[%clk 0:00:19.2]} 74. Re8+ {[%clk 0:00:27.1]}
74... Kf4 {[%clk 0:00:20.1]} 75. Ke2 {[%clk 0:00:28.1]} 75... Rh3 {[%clk
0:00:17]} 76. Rxd4+ {[%clk 0:00:29.2]} 76... Kf5 {[%clk 0:00:18.3]} 77. Rd3
{[%clk 0:00:30.3]} 77... Rh2+ {[%clk 0:00:19.1]} 78. Kf1 {[%clk 0:00:31.5]}
78... Rh1+ {[%clk 0:00:20.2]} 79. Kg2 {[%clk 0:00:32.8]} 79... Ra1 {[%clk
0:00:21.5]} 80. Rf3+ {[%clk 0:00:34]} 80... Kg6 {[%clk 0:00:22.2]} 81. Rg8+
{[%clk 0:00:35.1]} 81... Kh7 {[%clk 0:00:23.5]} 82. Rg4 {[%clk 0:00:35.9]} 1-0